bitfinex/quotes_BTCUSD_20230113
["timestamp","ask_amount","ask_price","bid_price","bid_amount"]
[1673587659525,0.22315194,18820.0,18819.0,1.43358982]
[1673587660279,0.55349594,18820.0,18819.0,1.43358982]
[1673587660775,0.55495713,18820.0,18819.0,0.56008674]
[1673587661023,0.55495713,18820.0,18819.0,0.003]
[1673587661024,1.30624105,18820.0,18819.0,0.003]
[1673587661266,1.46479431,18820.0,18819.0,0.003]
[1673587662006,1.70261748,18820.0,18819.0,0.003]
[1673587662754,2.31030799,18820.0,18819.0,0.003]
[1673587663018,2.89059322,18820.0,18819.0,0.003]
[1673587663276,0.66273679,18819.0,18818.0,0.00841229]
[1673587663526,1.51360842,18819.0,18818.0,0.00841229]
[1673587663810,1.19960397,18819.0,18818.0,0.00841229]
[1673587664550,1.04102379,18819.0,18818.0,0.00841229]
[1673587665785,1.17602379,18819.0,18818.0,0.00841229]
[1673587666505,1.03452379,18819.0,18818.0,0.00841229]
[1673587666826,0.69773679,18819.0,18818.0,0.00841229]
[1673587667858,1.02808079,18819.0,18818.0,0.00841229]
[1673587668371,0.69773679,18819.0,18818.0,0.00841229]
[1673587668870,1.02808079,18819.0,18818.0,0.00841229]
[1673587671307,0.69773679,18819.0,18818.0,0.00841229]
[1673587672594,1.02808079,18819.0,18818.0,0.00841229]
[1673587673121,0.69773679,18819.0,18818.0,0.00841229]
[1673587674304,1.02808079,18819.0,18818.0,0.00841229]
[1673587675253,0.69773679,18819.0,18818.0,0.00841229]
[1673587675707,0.135,18819.0,18818.0,0.78975563]
[1673587675946,0.135,18819.0,18818.0,1.57941555]
[1673587676908,0.135,18819.0,18818.0,1.97718637]
[1673587679641,0.13646119,18819.0,18818.0,1.97718637]
[1673587679892,0.13646119,18819.0,18818.0,1.81799024]
[1673587680160,0.135,18819.0,18818.0,1.51799024]
[1673587680381,0.135,18819.0,18818.0,1.81799024]
[1673587681809,0.134191,18819.0,18818.0,1.81799024]
[1673587682278,0.134191,18819.0,18818.0,1.97718637]
[1673587683286,0.13548838,18819.0,18818.0,1.97718637]
[1673587686147,0.13694957,18819.0,18818.0,1.97718637]
[1673587686619,0.13694957,18819.0,18818.0,1.83620811]
[1673587686869,0.13694957,18819.0,18818.0,1.18764019]
[1673587687360,0.13694957,18819.0,18818.0,0.94877737]
[1673587688587,0.13694957,18819.0,18818.0,0.78975563]
[1673587689129,0.84420295,18819.0,18818.0,0.00841229]
[1673587694969,0.94420295,18819.0,18818.0,0.00841229]
[1673587695202,1.27454695,18819.0,18818.0,0.00841229]
[1673587698394,1.41604695,18819.0,18818.0,0.00841229]
[1673587699380,1.57462713,18819.0,18818.0,0.00841229]
[1673587701655,1.91604695,18819.0,18818.0,0.00841229]
[1673587703631,1.91474957,18819.0,18818.0,0.00841229]
[1673587703872,1.91604632,18819.0,18818.0,0.00841229]
[1673587704619,2.0746265,18819.0,18818.0,0.00841229]
[1673587706698,2.40538433,18819.0,18818.0,1e-08]
[1673587706966,2.09184406,18819.0,18818.0,1e-08]
[1673587707210,1.85396989,18819.0,18818.0,1e-08]
[1673587707463,1.71977889,18819.0,18818.0,1e-08]
[1673587707708,1.95765306,18819.0,18818.0,1e-08]
[1673587708213,2.40740045,18819.0,18818.0,1e-08]
[1673587710945,2.09365306,18819.0,18818.0,1e-08]
[1673587711191,1.85577889,18819.0,18818.0,1e-08]
[1673587712452,1.51068212,18819.0,18818.0,1e-08]
[1673587712713,1.35210194,18819.0,18818.0,1e-08]
[1673587714226,0.96764075,18819.0,18818.0,1e-08]
[1673587714498,0.63729675,18819.0,18818.0,1e-08]
[1673587714992,0.96764075,18819.0,18818.0,1e-08]
[1673587715805,0.63729675,18819.0,18818.0,1e-08]
[1673587717808,0.63875794,18819.0,18818.0,1e-08]
[1673587719346,0.63729675,18819.0,18818.0,1e-08]
[1673587719590,0.63729675,18819.0,18818.0,0.36570001]
[1673587719841,0.63729675,18819.0,18818.0,0.69604401]
[1673587720100,0.63729675,18819.0,18818.0,0.99604401]
[1673587720347,0.63729675,18819.0,18818.0,1.43776575]
[1673587720562,0.63729675,18819.0,18818.0,1.85900418]
[1673587721088,0.63729675,18819.0,18818.0,1.55900418]
[1673587721593,0.50129675,18819.0,18818.0,1.55900418]
[1673587721842,0.61929675,18819.0,18818.0,1.56100418]
[1673587722084,0.50129675,18819.0,18818.0,1.55900418]
[1673587722330,0.61929675,18819.0,18818.0,1.56100418]
[1673587724061,0.61930352,18819.0,18818.0,1.56100418]
[1673587725575,0.61930352,18819.0,18818.0,2.02002592]
[1673587726083,0.61930352,18819.0,18818.0,1.43976575]
[1673587726328,0.61930352,18819.0,18818.0,2.02284709]
[1673587726586,0.61930352,18819.0,18818.0,1.43976575]
[1673587726838,0.61930352,18819.0,18818.0,1.67862857]
[1673587727377,0.61930352,18819.0,18818.0,2.20343467]
[1673587727861,0.62076471,18819.0,18818.0,2.20343467]
[1673587728157,0.61930352,18819.0,18818.0,1.67862857]
[1673587728405,0.61930352,18819.0,18818.0,2.31322753]
[1673587729160,0.61930352,18819.0,18818.0,1.67862857]
[1673587729406,0.61930352,18819.0,18818.0,3.02042526]
[1673587729651,0.61930352,18819.0,18818.0,2.72386897]
[1673587730125,0.61930352,18819.0,18818.0,3.07587221]
[1673587730360,0.61921186,18819.0,18818.0,3.07587221]
[1673587730875,0.61921186,18819.0,18818.0,2.72386897]
[1673587731616,0.61921186,18819.0,18818.0,3.04165019]
[1673587732637,0.61921186,18819.0,18818.0,2.64397218]
[1673587732881,0.61921186,18819.0,18818.0,3.23426015]
[1673587733375,0.61921186,18819.0,18818.0,2.99597542]
[1673587733616,0.61921186,18819.0,18818.0,3.77763663]
[1673587734125,0.61921186,18819.0,18818.0,3.5393689]
[1673587734605,0.61921186,18819.0,18818.0,3.77761544]
[1673587736058,0.61921186,18819.0,18818.0,3.23422196]
[1673587736302,0.61921186,18819.0,18818.0,3.88292627]
[1673587736605,0.61921186,18819.0,18818.0,3.23422196]
[1673587736849,0.61921186,18819.0,18818.0,3.39365343]
[1673587737091,0.61921186,18819.0,18818.0,3.04165019]
[1673587739580,0.62067305,18819.0,18818.0,3.44597778]
[1673587739819,0.61921186,18819.0,18818.0,3.44597778]
[1673587740310,0.61921186,18819.0,18818.0,2.88228919]
[1673587740566,0.61921186,18819.0,18818.0,3.55130065]
[1673587740816,0.61921186,18819.0,18818.0,3.23429243]
[1673587741053,0.61921186,18819.0,18818.0,3.57165573]
[1673587741305,0.61921186,18819.0,18818.0,3.92365897]
[1673587741819,0.61921186,18819.0,18818.0,3.23429243]
[1673587742067,0.61921186,18819.0,18818.0,3.55756616]
[1673587742304,0.61921186,18819.0,18818.0,2.56450797]
[1673587742557,0.61921186,18819.0,18818.0,2.7232368]
[1673587743313,0.61921186,18819.0,18818.0,2.7232068]
[1673587744338,0.61921086,18819.0,18818.0,3.38932727]
[1673587745796,0.61921086,18819.0,18818.0,2.7232068]
[1673587746279,0.61921086,18819.0,18818.0,3.34629334]
[1673587746999,0.61921086,18819.0,18818.0,3.18756451]
[1673587747480,0.61921086,18819.0,18818.0,2.92189451]
[1673587747992,0.61921086,18819.0,18818.0,2.65081121]
[1673587748240,0.61921086,18819.0,18818.0,2.96859243]
[1673587748499,0.61921086,18819.0,18818.0,3.12818044]
[1673587748741,0.61921086,18819.0,18818.0,2.7761772]
[1673587749200,0.61921086,18819.0,18818.0,2.45839598]
[1673587750452,0.61921086,18819.0,18818.0,2.81039922]
[1673587750696,0.61921086,18819.0,18818.0,2.41272121]
[1673587751644,0.61921086,18819.0,18818.0,2.93895391]
[1673587752126,0.61921086,18819.0,18818.0,3.33602262]
[1673587752363,0.61921086,18819.0,18818.0,2.98401938]
[1673587752619,0.61921086,18819.0,18818.0,2.58695067]
[1673587752844,0.61921086,18819.0,18818.0,2.97526]
[1673587754316,0.69874149,18819.0,18818.0,2.97526]
[1673587755019,0.69867453,18819.0,18818.0,2.97526]
[1673587756266,0.69867453,18819.0,18818.0,3.41606176]
[1673587756550,0.69867453,18819.0,18818.0,3.06405852]
[1673587758760,0.69867453,18819.0,18818.0,3.41606176]
[1673587759009,0.69867453,18819.0,18818.0,3.06405852]
[1673587759231,0.03,18821.0,18819.0,0.1]
[1673587759525,0.03,18821.0,18820.0,1.15121905]
[1673587759777,0.03,18821.0,18820.0,1.45121905]
[1673587760479,0.092,18821.0,18820.0,1.45144604]
[1673587761441,0.03,18821.0,18820.0,1.76951538]
[1673587761689,0.092,18821.0,18820.0,1.46144604]
[1673587761928,0.092,18821.0,18820.0,1.45144604]
[1673587762145,0.154,18821.0,18820.0,1.7785082]
[1673587762450,0.154,18821.0,18820.0,1.6379082]
[1673587762703,0.154,18821.0,18820.0,1.31984604]
[1673587763419,0.154,18821.0,18820.0,1.85494121]
[1673587763650,0.154,18821.0,18820.0,1.99494229]
[1673587764538,0.15530077,18821.0,18820.0,1.99494229]
[1673587764967,0.15530077,18821.0,18820.0,2.26059229]
[1673587765746,0.15530077,18821.0,18820.0,2.57878214]
[1673587766467,0.15530077,18821.0,18820.0,2.26059229]
[1673587767198,0.15530077,18821.0,18820.0,2.5788723]
[1673587768026,0.15530077,18821.0,18820.0,2.26059229]
[1673587768317,0.15530077,18821.0,18820.0,2.57888212]
[1673587768528,0.15530077,18821.0,18820.0,2.26059229]
[1673587768767,0.15676196,18821.0,18820.0,2.03037908]
[1673587769014,0.15530077,18821.0,18820.0,1.40003508]
[1673587769250,0.15530077,18821.0,18820.0,1.24124076]
[1673587769493,0.15530077,18821.0,18820.0,1.08206717]
[1673587769743,0.15676196,18821.0,18820.0,1.08206717]
[1673587770000,0.25676196,18821.0,18820.0,0.84328644]
[1673587770479,0.25676196,18821.0,18820.0,0.009]
[1673587770719,0.80013999,18821.0,18820.0,0.009]
[1673587778301,0.9401788,18821.0,18820.0,0.009]
[1673587778558,1.4120228,18821.0,18820.0,0.009]
[1673587778808,1.88251595,18821.0,18820.0,0.009]
[1673587779308,1.33913792,18821.0,18820.0,0.009]
[1673587779548,1.71231018,18821.0,18820.0,0.009]
[1673587780315,0.1,18819.0,18818.0,1e-08]
[1673587780573,0.571844,18819.0,18818.0,1e-08]
[1673587780822,0.2415,18819.0,18818.0,1e-08]
[1673587781589,0.24896119,18819.0,18818.0,0.00900001]
[1673587782803,0.57930519,18819.0,18818.0,0.00900001]
[1673587783290,0.24896119,18819.0,18818.0,0.00900001]
[1673587784993,0.25026197,18819.0,18818.0,0.00900001]
[1673587785981,0.58060597,18819.0,18818.0,0.00900001]
[1673587788702,0.47914478,18819.0,18818.0,0.00900001]
[1673587788955,0.14880078,18819.0,18818.0,0.00900001]
[1673587789424,0.47914478,18819.0,18818.0,0.00900001]
[1673587789667,0.57914478,18819.0,18818.0,0.00900001]
[1673587792688,0.58060597,18819.0,18818.0,0.00900001]
[1673587794118,0.25026197,18819.0,18818.0,0.00900001]
[1673587794616,0.58060597,18819.0,18818.0,0.00900001]
[1673587795119,0.14880078,18819.0,18818.0,0.00900001]
[1673587796095,0.15026197,18819.0,18818.0,0.00900001]
[1673587797324,0.48060597,18819.0,18818.0,0.00900001]
[1673587797581,0.48060597,18819.0,18818.0,0.53477924]
[1673587797822,0.15026197,18819.0,18818.0,0.53477924]
[1673587801263,0.14880078,18819.0,18818.0,0.53477924]
[1673587802718,0.07902313,18819.0,18818.0,0.53477924]
[1673587805237,0.07902178,18819.0,18818.0,0.53477924]
[1673587807290,0.08048297,18819.0,18818.0,0.53477924]
[1673587807533,0.07902178,18819.0,18818.0,0.53477924]
[1673587808249,0.07902178,18819.0,18818.0,0.69396943]
[1673587808732,0.08048297,18819.0,18818.0,0.69396943]
[1673587808985,0.07902178,18819.0,18818.0,0.69396943]
[1673587809496,0.07902178,18819.0,18818.0,0.69248687]
[1673587809980,0.08036881,18819.0,18818.0,0.69248687]
[1673587810453,0.07890762,18819.0,18818.0,0.69248687]
[1673587811198,0.08036881,18819.0,18818.0,0.69248687]
[1673587811466,0.07890762,18819.0,18818.0,0.69248687]
[1673587812472,0.08036881,18819.0,18818.0,0.69248687]
[1673587812731,0.07890762,18819.0,18818.0,0.69248687]
[1673587813374,0.07890762,18819.0,18818.0,0.53329668]
[1673587813618,0.17890762,18819.0,18818.0,0.53329668]
[1673587813877,0.18036881,18819.0,18818.0,0.53329668]
[1673587814136,0.18036881,18819.0,18818.0,0.69248687]
[1673587814388,0.18036881,18819.0,18818.0,0.53329668]
[1673587814594,0.51071281,18819.0,18818.0,0.53329668]
[1673587815331,0.51071281,18819.0,18818.0,0.00751745]
[1673587815332,1.14435595,18819.0,18818.0,0.00751745]
[1673587816316,1.30293613,18819.0,18818.0,0.00751745]
[1673587816558,1.29939846,18819.0,18818.0,0.00751745]
[1673587816820,1.44089846,18819.0,18818.0,0.00751745]
[1673587817079,2.1860548,18819.0,18818.0,0.00751745]
[1673587817575,1.99059571,18819.0,18818.0,0.00751745]
[1673587817843,1.67877263,18819.0,18818.0,0.00751745]
[1673587818092,1.65644489,18819.0,18818.0,0.00751745]
[1673587818340,0.1,18818.0,18816.0,0.00978211]
[1673587818587,0.376987,18817.0,18816.0,0.00978211]
[1673587819553,0.376987,18817.0,18816.0,0.01078211]
[1673587819856,0.376987,18817.0,18816.0,0.00978211]
[1673587820151,0.376987,18817.0,18816.0,0.01078211]
[1673587820152,1.09823604,18817.0,18816.0,0.01078211]
[1673587820352,0.86175327,18817.0,18816.0,0.01078211]
[1673587820605,0.96175327,18817.0,18816.0,0.01078211]
[1673587820858,0.39144819,18817.0,18816.0,0.01078211]
[1673587821372,0.37844819,18817.0,18816.0,0.00978211]
[1673587821620,0.51244819,18817.0,18816.0,0.00978211]
[1673587823856,1.19057233,18817.0,18816.0,0.00978211]
[1673587825644,1.1918757,18817.0,18816.0,0.00978211]
[1673587828392,1.19041451,18817.0,18816.0,0.00978211]
[1673587831933,1.1918757,18817.0,18816.0,0.00978211]
[1673587832448,1.19041451,18817.0,18816.0,0.00978211]
[1673587832990,1.1918757,18817.0,18816.0,0.00978211]
[1673587833717,0.27550337,18817.0,18816.0,0.00978211]
[1673587834213,0.60730856,18817.0,18816.0,0.7098067]
[1673587834708,0.27550337,18817.0,18816.0,0.7098067]
[1673587835435,0.27696456,18817.0,18816.0,0.7098067]
[1673587835699,0.27550337,18817.0,18816.0,0.7098067]
[1673587836695,0.27550337,18817.0,18816.0,0.7108067]
[1673587836935,0.27550337,18817.0,18816.0,0.7098067]
[1673587837670,0.60584737,18817.0,18816.0,0.7098067]
[1673587837914,0.60730856,18817.0,18816.0,0.7098067]
[1673587838397,0.60584737,18817.0,18816.0,0.7098067]
[1673587838642,0.27550337,18817.0,18816.0,0.7098067]
[1673587839129,0.46564737,18817.0,18816.0,0.7098067]
[1673587839373,0.13530337,18817.0,18816.0,0.7098067]
[1673587841638,0.13676456,18817.0,18816.0,0.7098067]
[1673587843315,0.13530337,18817.0,18816.0,0.7098067]
[1673587843806,0.13676456,18817.0,18816.0,0.7098067]
[1673587845739,0.13675871,18817.0,18816.0,0.7098067]
[1673587846427,0.13529752,18817.0,18816.0,0.7098067]
[1673587847442,0.13675871,18817.0,18816.0,0.7098067]
[1673587847947,0.13529752,18817.0,18816.0,0.7098067]
[1673587848214,0.13518615,18817.0,18816.0,1.73812162]
[1673587848697,0.13518615,18817.0,18816.0,1.89729521]
[1673587848945,0.13518615,18817.0,18816.0,1.33787062]
[1673587849210,0.13518615,18817.0,18816.0,1.8105739]
[1673587849457,0.13518615,18817.0,18816.0,1.4684458]
[1673587850226,0.00129752,18817.0,18816.0,1.94555365]
[1673587850463,0.01629752,18817.0,18816.0,1.4864458]
[1673587850705,0.01629752,18817.0,18816.0,2.52609244]
[1673587850950,0.01629752,18817.0,18816.0,1.66250576]
[1673587851175,0.01629752,18817.0,18816.0,2.0126785]
[1673587851663,0.01629752,18817.0,18816.0,2.41001309]
[1673587851941,0.01629752,18817.0,18816.0,2.65606314]
[1673587852198,0.01629752,18817.0,18816.0,2.05984035]
[1673587852438,0.01629752,18817.0,18816.0,2.37766547]
[1673587852681,0.01629752,18817.0,18816.0,2.05984035]
[1673587853428,0.01629752,18817.0,18816.0,2.37766662]
[1673587853681,0.01629752,18817.0,18816.0,2.23616662]
[1673587853929,0.01629752,18817.0,18816.0,1.91834035]
[1673587854177,0.01629752,18817.0,18816.0,2.23616683]
[1673587854665,0.01629752,18817.0,18816.0,2.85801511]
[1673587854903,0.01629752,18817.0,18816.0,2.23616683]
[1673587855924,0.01629752,18817.0,18816.0,2.7652186]
[1673587856165,0.01629752,18817.0,18816.0,2.60617535]
[1673587856662,0.01629752,18817.0,18816.0,1.42493594]
[1673587856663,0.01775871,18817.0,18816.0,1.42493594]
[1673587856949,0.01629752,18817.0,18816.0,1.1866446]
[1673587857449,0.01629752,18817.0,18816.0,0.55683388]
[1673587857701,0.01775871,18817.0,18816.0,0.55683388]
[1673587857952,0.00129752,18817.0,18816.0,0.53883388]
[1673587858220,0.01329752,18817.0,18816.0,0.55483388]
[1673587858705,0.00129752,18817.0,18816.0,0.53883388]
[1673587858940,0.07029752,18817.0,18816.0,0.54083388]
[1673587860422,0.07029752,18817.0,18816.0,0.6997006]
[1673587860674,0.07029752,18817.0,18816.0,0.54083388]
[1673587861443,0.15562551,18817.0,18816.0,0.54083388]
[1673587866196,0.15563068,18817.0,18816.0,0.54083388]
[1673587868682,0.15709187,18817.0,18816.0,0.54083388]
[1673587869172,0.15563068,18817.0,18816.0,0.68233388]
[1673587869420,0.15563068,18817.0,18816.0,0.15328211]
[1673587870653,0.48597468,18817.0,18816.0,0.15328211]
[1673587870917,0.48588331,18817.0,18816.0,0.15328211]
[1673587871159,0.15553931,18817.0,18816.0,0.15328211]
[1673587871640,0.15553931,18817.0,18816.0,0.71550992]
[1673587871894,0.15553931,18817.0,18816.0,1.01550992]
[1673587872175,0.15553931,18817.0,18816.0,1.34585392]
[1673587872422,0.15553931,18817.0,18816.0,1.50472064]
[1673587872684,0.15553931,18817.0,18816.0,0.71550992]
[1673587875961,1.00793177,18817.0,18816.0,0.01178211]
[1673587876228,1.28502476,18817.0,18816.0,0.01178211]
[1673587877273,1.26947083,18817.0,18816.0,0.01178211]
[1673587878782,0.1,18816.0,18815.0,0.00978211]
[1673587879029,1.14580116,18816.0,18815.0,0.00978211]
[1673587880033,0.86410116,18816.0,18815.0,0.00978211]
[1673587880280,1.00010116,18816.0,18815.0,0.00978211]
[1673587880515,0.86410116,18816.0,18815.0,0.00978211]
[1673587880787,1.00010116,18816.0,18815.0,0.00978211]
[1673587881793,0.76331416,18816.0,18815.0,0.00978211]
[1673587882046,1.09365816,18816.0,18815.0,0.00978211]
[1673587882297,1.37736316,18816.0,18815.0,0.00978211]
[1673587882557,0.850049,18816.0,18815.0,0.00978211]
[1673587883014,1.52885139,18816.0,18815.0,0.00978211]
[1673587883521,0.850049,18816.0,18815.0,0.00978211]
[1673587884263,1.43901979,18816.0,18815.0,0.00978211]
[1673587884745,0.850049,18816.0,18815.0,0.00978211]
[1673587884976,1.43514164,18816.0,18815.0,0.00978211]
[1673587885696,1.29293664,18816.0,18815.0,0.00978211]
[1673587886210,0.707844,18816.0,18815.0,0.01078211]
[1673587886458,1.30933334,18816.0,18815.0,0.00978211]
[1673587887218,0.7091425,18816.0,18815.0,0.00978211]
[1673587887697,0.84583958,18816.0,18815.0,0.00978211]
[1673587888682,0.98733958,18816.0,18815.0,0.00978211]
[1673587893427,1.39452222,18816.0,18815.0,0.00978211]
[1673587895696,0.8506425,18816.0,18815.0,0.00978211]
[1673587895981,1.5478618,18816.0,18815.0,0.00978211]
[1673587901440,1.70622867,18816.0,18815.0,0.00978211]
[1673587901658,1.57022867,18816.0,18815.0,0.00978211]
[1673587901884,1.4118618,18816.0,18815.0,0.00978211]
[1673587902416,1.57022867,18816.0,18815.0,0.00978211]
[1673587902664,1.4118618,18816.0,18815.0,0.00978211]
[1673587903667,1.5478618,18816.0,18815.0,0.00978211]
[1673587904655,1.53370885,18816.0,18815.0,0.00978211]
[1673587905901,1.69207572,18816.0,18815.0,0.00978211]
[1673587906648,1.69207386,18816.0,18815.0,0.00978211]
[1673587907658,1.92972185,18816.0,18815.0,0.00978211]
[1673587908932,0.56037359,18815.0,18814.0,0.01120388]
[1673587909186,1.03866059,18815.0,18814.0,0.01120388]
[1673587909429,0.80187359,18815.0,18814.0,0.01120388]
[1673587909677,1.13221759,18815.0,18814.0,0.01120388]
[1673587910178,0.80187359,18815.0,18814.0,0.01120388]
[1673587910422,1.10781109,18815.0,18814.0,0.01120388]
[1673587910673,1.43815509,18815.0,18814.0,0.01120388]
[1673587911423,1.03504837,18815.0,18814.0,0.01120388]
[1673587911676,2.66754602,18815.0,18814.0,0.01120388]
[1673587911923,2.50917915,18815.0,18814.0,0.01120388]
[1673587912168,2.82594017,18815.0,18814.0,0.01120388]
[1673587912416,3.37630971,18815.0,18814.0,0.01120388]
[1673587912673,2.51501232,18815.0,18814.0,0.01120388]
[1673587912924,1.79202151,18815.0,18814.0,0.01120388]
[1673587913179,1.49325462,18815.0,18814.0,0.01120388]
[1673587913417,1.64692151,18815.0,18814.0,0.01120388]
[1673587914170,1.12215478,18815.0,18814.0,0.01120388]
[1673587914916,1.64215437,18815.0,18814.0,0.01120388]
[1673587915680,1.4045658,18815.0,18814.0,0.01120388]
[1673587915923,1.64244226,18815.0,18814.0,0.01120388]
[1673587919685,0.88456621,18815.0,18814.0,0.01120388]
[1673587919931,2.16619737,18815.0,18814.0,0.01120388]
[1673587920173,1.50755387,18815.0,18814.0,0.01120388]
[1673587920414,2.68690893,18815.0,18814.0,0.01120388]
[1673587920665,2.74712977,18815.0,18814.0,0.01120388]
[1673587921861,2.06392127,18815.0,18814.0,0.01120388]
[1673587922103,1.74716025,18815.0,18814.0,0.01120388]
[1673587922586,2.60401504,18815.0,18814.0,0.01120388]
[1673587923263,1.74716025,18815.0,18814.0,0.01120388]
[1673587923539,2.40761375,18815.0,18814.0,0.01120388]
[1673587923785,1.74716025,18815.0,18814.0,0.01120388]
[1673587924750,2.75211219,18815.0,18814.0,0.01120388]
[1673587926536,2.06439667,18815.0,18814.0,0.01120388]
[1673587926751,1.74716025,18815.0,18814.0,0.01120388]
[1673587926997,2.01523982,18815.0,18814.0,0.01120388]
[1673587927502,2.07457388,18815.0,18814.0,0.01120388]
[1673587928757,1.62614017,18815.0,18814.0,0.01120388]
[1673587929008,1.76314017,18815.0,18814.0,0.01108917]
[1673587929261,2.07571703,18815.0,18814.0,0.01108917]
[1673587929506,2.07568202,18815.0,18814.0,0.01108917]
[1673587929764,3.13869048,18815.0,18814.0,0.01108917]
[1673587930007,2.07568202,18815.0,18814.0,0.01108917]
[1673587930260,1.49636084,18815.0,18814.0,0.01108917]
[1673587930507,2.55937112,18815.0,18814.0,0.01108917]
[1673587930760,1.35936084,18815.0,18814.0,0.01108917]
[1673587931282,3.34585037,18815.0,18814.0,0.01108917]
[1673587931543,0.0096055,18813.0,18812.0,0.01257963]
[1673587931778,1.24304788,18813.0,18812.0,0.01257963]
[1673587932042,1.88630329,18813.0,18812.0,0.01257963]
[1673587932287,1.56912312,18813.0,18812.0,0.01257963]
[1673587932538,1.88619144,18813.0,18812.0,0.01257963]
[1673587932818,1.74469144,18813.0,18812.0,0.01257963]
[1673587933056,1.88169144,18813.0,18812.0,0.01257963]
[1673587933817,2.43332952,18813.0,18812.0,0.01257963]
[1673587934080,1.09693603,18813.0,18812.0,0.01257963]
[1673587934564,2.01556188,18813.0,18812.0,0.01257963]
[1673587935276,2.01702307,18813.0,18812.0,0.01257963]
[1673587936258,1.88325947,18813.0,18812.0,0.01257963]
[1673587936507,1.09839722,18813.0,18812.0,0.01257963]
[1673587937002,1.88325736,18813.0,18812.0,0.01257963]
[1673587937255,1.51751124,18813.0,18812.0,0.01257963]
[1673587937507,1.35892209,18813.0,18812.0,0.01257963]
[1673587938507,1.17095017,18813.0,18812.0,0.01257963]
[1673587938761,1.01234892,18813.0,18812.0,0.01257963]
[1673587939005,1.68155426,18813.0,18812.0,1e-08]
[1673587941224,1.68153377,18813.0,18812.0,1e-08]
[1673587941500,1.44384266,18813.0,18812.0,1e-08]
[1673587942438,1.68151867,18813.0,18812.0,1e-08]
[1673587943207,1.44384266,18813.0,18812.0,1e-08]
[1673587943450,1.84031787,18813.0,18812.0,1e-08]
[1673587943689,2.62517495,18813.0,18812.0,1e-08]
[1673587943943,2.28855143,18813.0,18812.0,1e-08]
[1673587944194,3.82807757,18813.0,18812.0,1e-08]
[1673587944439,3.83657757,18813.0,18812.0,1e-08]
[1673587944951,3.69957757,18813.0,18812.0,1e-08]
[1673587945190,3.83657757,18813.0,18812.0,1e-08]
[1673587945690,3.69957757,18813.0,18812.0,1e-08]
[1673587945933,3.83657757,18813.0,18812.0,1e-08]
[1673587947166,3.83787673,18813.0,18812.0,1e-08]
[1673587947417,5.97130465,18813.0,18811.0,0.01365614]
[1673587947669,7.50992182,18812.0,18811.0,0.01365614]
[1673587947919,7.50992182,18812.0,18809.0,0.01475654]
[1673587947920,0.03180474,18810.0,18809.0,0.01475654]
[1673587948166,1.05002182,18810.0,18809.0,0.01475654]
[1673587948419,2.1251275,18810.0,18809.0,0.01475654]
[1673587948676,3.66336385,18810.0,18809.0,0.01475654]
[1673587948919,2.2621275,18810.0,18809.0,0.01475654]
[1673587949436,3.80912366,18810.0,18809.0,0.01475654]
[1673587950157,4.89435636,18810.0,18809.0,0.01475654]
[1673587950400,4.89435636,18810.0,18809.0,6.54e-06]
[1673587950401,6.98505162,18810.0,18809.0,6.54e-06]
[1673587950649,6.84694168,18810.0,18809.0,6.54e-06]
[1673587950891,7.03701173,18810.0,18809.0,6.54e-06]
[1673587951139,8.0831802,18810.0,18809.0,6.54e-06]
[1673587951379,0.16500907,18805.0,18803.0,0.01906334]
[1673587951657,0.82254894,18804.0,18803.0,0.01906334]
[1673587951907,0.571844,18804.0,18803.0,0.01906334]
[1673587952657,0.57330519,18804.0,18803.0,0.01906334]
[1673587953371,1.18120817,18804.0,18803.0,0.01906334]
[1673587953901,1.31820817,18804.0,18803.0,0.01906334]
[1673587954149,1.18120817,18804.0,18803.0,0.01906334]
[1673587954668,1.32747998,18804.0,18803.0,0.01906334]
[1673587954929,0.16500907,18805.0,18803.0,0.64100651]
[1673587955181,0.137,18804.0,18803.0,0.64100651]
[1673587955424,0.137,18804.0,18803.0,0.78140651]
[1673587955677,0.137,18804.0,18803.0,1.11175051]
[1673587955921,0.13846119,18804.0,18803.0,1.11175051]
[1673587956178,0.137,18804.0,18803.0,0.78140651]
[1673587956679,0.67975796,18805.0,18803.0,0.78140651]
[1673587956944,0.30200907,18805.0,18804.0,0.1415]
[1673587957217,0.16500907,18805.0,18804.0,0.1415]
[1673587957963,0.30200907,18805.0,18804.0,0.1415]
[1673587958226,0.16500907,18805.0,18804.0,0.1365]
[1673587958480,0.30100907,18805.0,18804.0,0.1365]
[1673587958726,0.30247026,18805.0,18804.0,0.1365]
[1673587960228,0.30100907,18805.0,18804.0,0.1365]
[1673587960717,0.30100907,18805.0,18804.0,0.82674998]
[1673587961467,0.30100907,18805.0,18804.0,0.749844]
[1673587961727,0.30100907,18805.0,18804.0,1.897644]
[1673587962231,0.30100907,18805.0,18804.0,2.44741814]
[1673587962483,0.30100907,18805.0,18804.0,1.59891814]
[1673587962740,0.30100907,18805.0,18804.0,1.29891814]
[1673587962987,0.30100907,18805.0,18804.0,1.59891814]
[1673587963235,0.30100907,18805.0,18804.0,1.74222247]
[1673587963499,0.16500907,18805.0,18804.0,1.049144]
[1673587963752,0.30100907,18805.0,18804.0,1.050144]
[1673587964003,0.16500907,18805.0,18804.0,1.049144]
[1673587964252,0.29900907,18805.0,18804.0,1.61568352]
[1673587964505,0.29900907,18805.0,18804.0,1.31568352]
[1673587964756,0.29900907,18805.0,18804.0,1.61568352]
[1673587965258,0.29900907,18805.0,18804.0,0.750144]
[1673587965503,0.29900907,18805.0,18804.0,1.50298367]
[1673587965751,0.29900907,18805.0,18804.0,1.416034]
[1673587967196,0.29900907,18805.0,18804.0,2.08654644]
[1673587967486,0.30030957,18805.0,18804.0,1.82065644]
[1673587967993,0.30030957,18805.0,18804.0,1.150144]
[1673587972470,0.30030957,18805.0,18804.0,1.82328083]
[1673587973219,0.30030957,18805.0,18804.0,1.150144]
[1673587973718,0.30030957,18805.0,18804.0,1.83223679]
[1673587974208,0.30030957,18805.0,18804.0,1.74976125]
[1673587974472,0.30030957,18805.0,18804.0,1.150144]
[1673587975229,0.30030957,18805.0,18804.0,1.73757794]
[1673587978004,0.30030957,18805.0,18804.0,1.30901072]
[1673587978253,0.30030957,18805.0,18804.0,1.80710715]
[1673587979015,0.3002013,18805.0,18804.0,1.64824043]
[1673587979265,0.3002013,18805.0,18804.0,1.10674043]
[1673587980028,0.3002013,18805.0,18804.0,0.97024043]
[1673587980524,0.3002013,18805.0,18804.0,0.63989643]
[1673587981273,0.3002013,18805.0,18804.0,0.64071953]
[1673587982283,0.3002013,18805.0,18804.0,0.97106353]
[1673587982806,0.3002013,18805.0,18804.0,0.001]
[1673587982807,0.92804776,18805.0,18804.0,0.001]
[1673587983055,1.25839176,18805.0,18804.0,0.001]
[1673587983299,1.25693057,18805.0,18804.0,0.001]
[1673587983802,0.92804776,18805.0,18804.0,0.001]
[1673587984555,1.25839176,18805.0,18804.0,0.001]
[1673587985310,1.39423094,18805.0,18804.0,0.001]
[1673587985823,1.26023094,18805.0,18803.0,0.01906334]
[1673587986080,0.236787,18804.0,18803.0,0.01906334]